Cogmind - Beta 15 @@@ ROGUE MODE // 2025.08.12 @ 21:54:06 Player: liam Result: Self-destructed Performance ------------- Evolutions (3) 1500 Regions Visited (5) 1000 Robots Destroyed (40) 200 Value Destroyed (1393) 1393 Prototype IDs (0) 0 Alien Tech Used (0) 0 Bonus (0) 0 TOTAL SCORE: 4093 Bonus ------- None Cogmind --------- Core Integrity 588/700 Matter 161/300 Energy 100/100 System Corruption 4% Temperature Cool (0) Movement Rolling (120) Ox2 Location -7/Factory Parts ------- > --- POWER (3) -------- (None) > --- PROPULSION (3) --- Armored Wheel > --- UTILITY (4) ------ Improved Heat Sink Large Storage Unit EM Disruption Field Improved Shield Generator > --- WEAPON (3) ------- Beam Rifle > --- INVENTORY (15) --- Armored Wheel Improved Melee Analysis Suite Particle Charger Improved Light Armor Plating Improved Medium Armor Plating Recalibrator Beam Rifle Heavy Particle Gun Heavy Particle Gun Gatling Laser Heavy Particle Cannon Plasma Cannon Plasma Cannon Plasma Cannon Peak State ------------ > --- POWER ------------ Light Ion Engine Subdweller Power Source > --- PROPULSION ------- Improved Carbon-fiber Leg Improved Carbon-fiber Leg > --- UTILITY ---------- Scrap Suit Hardened Heavy Armor Plating > --- WEAPON ----------- Particle Gun Battle Cannon Improved Grenade Launcher > --- INVENTORY -------- Improved Carbon-fiber Leg Improved Carbon-fiber Leg [Rating: 34] Favorites ----------- Power Light Ion Engine Engine Light Ion Engine Power Core Light Nuclear Core Propulsion Armored Wheel Treads Light Treads Leg Aluminum Leg Wheel Armored Wheel Utility Improved Heat Sink Device Improved Heat Sink Storage Large Storage Unit Processor Terrain Scan Processor Protection Improved Light Armor Plating Weapon Beam Rifle Energy Gun Beam Rifle Ballistic Gun Heavy Assault Rifle Ballistic Cannon Battle Cannon Launcher Improved Grenade Launcher Build | -11 -10 -10 -10 -8 -7 ------- Run | Yrd Mat Min Sub Mat Fac Slots Evolved 6 | . . . . 4 2 Power 2 | . . . . 1 1 Propulsion 1 | . . . . . 1 Utility 2 | . . . . 2 . Weapon 1 | . . . . 1 . Parts Attached 54 | 8 2 1 5 32 6 Power 7 | 1 . . 1 5 . Engine 5 | 1 . . 1 3 . Core 2 | . . . . 2 . Reactor . | . . . . . . Propulsion 16 | 4 . . 3 8 1 Treads 4 | . . . 2 2 . Leg 6 | 2 . . . 4 . Wheel 6 | 2 . . 1 2 1 Hover . | . . . . . . Flight . | . . . . . . Utility 18 | 1 2 1 . 12 2 Device 9 | . 1 1 . 5 2 Storage 3 | 1 1 . . 1 . Processor 3 | . . . . 3 . Hackware . | . . . . . . Protection 3 | . . . . 3 . Artifact . | . . . . . . Weapon 13 | 2 . . 1 7 3 Energy Gun 5 | 1 . . 1 3 . Energy Cannon . | . . . . . . Ballistic Gun 3 | 1 . . . 2 . Ballistic Cannon 1 | . . . . 1 . Launcher 4 | . . . . 1 3 Special Weapon . | . . . . . . Impact Weapon . | . . . . . . Slashing Weapon . | . . . . . . Piercing Weapon . | . . . . . . Special Melee Weapon . | . . . . . . Unidentified Prototypes . | . . . . . . Parts Lost 29 | . . . 6 17 6 Power 7 | . . . 1 4 2 Propulsion 8 | . . . 3 3 2 Utility 4 | . . . . 4 . Weapon 10 | . . . 2 6 2 Highest Loss Streak 6 | . . . 3 6 2 To Critical Strikes . | . . . . . . Average Backups 6 | 3 3 6 3 2 13 Power . | . . 1 1 . . Propulsion 1 | 2 1 2 1 1 2 Utility 1 | . . 1 . . 3 Weapon 3 | . . 2 1 . 8 Tool/Special . | . . . . . . Unused Backups 17 | . . 3 . . 14 Power . | . . . . . . Propulsion 3 | . . . . . 3 Utility 6 | . . 2 . . 4 Weapon 8 | . . 1 . . 7 Tool/Special . | . . . . . . Average Slot Usage (%) 76 | . 97 94 78 70 74 Engine 10 | . 14 14 14 11 6 Treads 3 | . . . 10 3 . Leg 9 | . 28 28 13 9 . Wheel 6 | . . . 1 2 16 Device 15 | . 11 14 14 11 20 Storage 4 | . 14 8 . 1 7 Processor 2 | . . . . 5 . Protection 2 | . . . . 4 2 Energy Gun 11 | . 14 14 15 9 10 Ballistic Gun 6 | . 14 14 8 3 6 Ballistic Cannon 1 | . . . . 3 . Launcher 1 | . . . . 2 2 Peak Build Rating 34 | 6 7 13 15 34 31 Average Rating 20 | 3 6 9 13 24 26 On Entrance 10 | . 6 7 13 14 24 Naked Turns . | . . . . . . Heaviest Build 46 | 11 13 13 14 46 46 Greatest Support 40 | 20 20 20 40 40 34 Greatest Overweight (x) 6 | . . . 4 6 3 Average Overweight (x) . | . . . . . 1 Largest Inventory Capacity 25 | 8 25 8 5 15 15 Average Capacity 9 | 6 8 6 5 6 15 Most Carried 15 | 5 8 8 5 8 15 Average Carried 6 | 3 3 6 3 2 13 Final Capacity 15 | 8 8 5 5 15 15 Final Carried 14 | 2 8 5 2 7 14 Class Distribution -------------------- 32% | Mutant 26% | Scavenger-Tank 19% | Scrapper 11% | Tank 6% | Scavenger-Mutant 3% | Scavenger-Gunner Dominant Class ---------------- Mutant | -10/Materials Mutant | -10/Mines Scrapper | -10/Subcaves Mutant | -8/Materials Scavenger-Tank | -7/Factory Resources | -11 -10 -10 -10 -8 -7 ----------- Run | Yrd Mat Min Sub Mat Fac Matter Collected 941 | 237 73 . 67 516 48 Remotely . | . . . . . . Salvage Created 1190 | . . . 187 824 179 Parts 71 | . . . 10 51 10 Haulers Intercepted . | . . . . . . Recyclers Shooed . | . . . . . . Parts Field Recycled . | . . . . . . Retrieved Matter . | . . . . . . Parts Self-Destructed 4 | . . . 4 . . Prevented . | . . . . . . Kills | -11 -10 -10 -10 -8 -7 ------- Run | Yrd Mat Min Sub Mat Fac Combat Hostiles Destroyed 33 | . . . 4 20 9 Melee 2 | . . . . 2 . Guns 15 | . . . 4 7 4 Cannons 2 | . . . . 2 . AOE 14 | . . . . 9 5 Classes Destroyed 10 | . . . 2 7 1 Builder 5 | . . . . 4 1 Recycler 1 | . . . . 1 . Watcher 1 | . . . . 1 . Swarmer 10 | . . . . 3 7 Grunt 11 | . . . 1 10 . Duelist 2 | . . . . 2 . Sentry 4 | . . . . 4 . Hunter 2 | . . . . 1 1 Programmer 1 | . . . . . 1 Subdweller 3 | . . . 3 . . Best Kill Streak 6 | . . . 1 6 4 Combat Bots Only 5 | . . . 1 5 4 Max Kills in Single Turn 3 | . . . 1 3 3 Gunslinging . | . . . . . . Exploded 2 | . . . . 2 2 Melee 1 | . . . . 1 . Uniques/NPCs Destroyed . | . . . . . . Combat | -11 -10 -10 -10 -8 -7 -------- Run | Yrd Mat Min Sub Mat Fac Hostile Shots Fired 295 | . . . 50 177 68 Missed 81 | . . . 12 44 25 Hits 214 | . . . 38 133 43 Melee 10 | . . . . 10 . Projectile 204 | . . . 38 123 43 Critical Strikes 10 | . . . 1 6 3 Damage Taken 4129 | . . . 852 2666 611 Core 702 | . . . 162 428 112 Absorbed by Shields 54 | . . . . . 54 Regen/Repaired (Parts) 23 | . . . 7 16 . Core Remaining (%) 52 | 100 . . 35 22 . Volleys Fired 115 | . . . 29 68 18 Largest 3 | . . . 2 3 3 Hottest 135 | . . . 115 135 135 Shots Fired 206 | . . . 55 112 39 Gun 174 | . . . 55 85 34 Cannon 17 | . . . . 17 . Launcher 15 | . . . . 10 5 Special . | . . . . . . Kinetic 89 | . . . 23 50 16 Thermal 102 | . . . 32 52 18 Explosive 15 | . . . . 10 5 Electromagnetic . | . . . . . . Robot Hit Streak 16 | . . . 8 16 9 Robot Miss Streak 4 | . . . 3 4 4 Penetration Max . | . . . . . . Secondary Targets 1 | . . . . 1 . Max Gunslinging Chain 1 | . . . . 1 . Shots Hit Robots 134 | . . . 37 75 22 Core Hits 87 | . . . 14 52 21 Critical Kills . | . . . . . . Critical Parts Destroyed . | . . . . . . Critical Strikes 8 | . . . 2 5 1 Burn 6 | . . . 2 3 1 Blast 2 | . . . . 2 . Melee Attacks . | . . . . . . Impact . | . . . . . . Slashing . | . . . . . . Piercing . | . . . . . . Sneak Attacks . | . . . . . . Combat Hostiles . | . . . . . . Follow-up Attacks . | . . . . . . Damage Inflicted 3535 | . . . 394 2165 976 Guns 1610 | . . . 394 813 403 Cannons 219 | . . . . 219 . Explosions 1653 | . . . . 1080 573 Melee . | . . . . . . Ramming 53 | . . . . 53 . Kinetic 815 | . . . 136 505 174 Thermal 1014 | . . . 258 527 229 Explosive 1653 | . . . . 1080 573 Electromagnetic . | . . . . . . Impact . | . . . . . . Slashing . | . . . . . . Piercing . | . . . . . . Highest Corruption 8 | . . . . 8 4 Average Corruption 6 | . . . . 7 3 Corruption Purged . | . . . . . . Corruption Blocked . | . . . . . . Effects 23 | . . . . 18 5 Message Errors 5 | . . . . 3 2 Matter Fused 5 | . . . . 3 2 Heat Flow Errors 2 | . . . . 2 . Energy Discharges 1 | . . . . 1 . Parts Rejected 1 | . . . . 1 . Data Loss (minor) 5 | . . . . 4 1 Data Loss (major) 3 | . . . . 3 . Alerts 1 | . . . . 1 . Overload Shots . | . . . . . . Overflow Damage 93 | . . . . 77 16 Projectiles . | . . . . . . Explosions 93 | . . . . 77 16 Melee . | . . . . . . Knockbacks 2 | . . . . 2 . Impact . | . . . . . . Kinetic 2 | . . . . 2 . Secondary . | . . . . . . Self-Inflicted Damage 218 | . . . . 173 45 Shots 5 | . . . . 4 1 Rammed 18 | . . . . 18 . Targets Rammed 25 | . . . . 25 . Kicked 7 | . . . . 7 . Crushed . | . . . . . . Highest Temperature 330 | . . . 294 330 24 Average Temperature 91 | . . . 88 98 10 Received Heat Transfer 1433 | . . . 491 936 6 Effects 1 | . . . . 1 . Interference 1 | . . . . 1 . Siege Activations . | . . . . . . Martial Activations . | . . . . . . Shielding Activations . | . . . . . . Robots Disrupted . | . . . . . . Combat Hostiles . | . . . . . . Robots Corrupted . | . . . . . . Combat Hostiles . | . . . . . . Parts Fried . | . . . . . . Impact Corruptions . | . . . . . . Robots Melted . | . . . . . . Combat Hostiles . | . . . . . . Parts Melted 4 | . . . 4 . . Heat Transferred 2997 | . . . 888 1517 592 Parts Sabotaged . | . . . . . . Parts Stolen . | . . . . . . Parts Stripped . | . . . . . . Power Chain Reactions . | . . . . . . Alert | -11 -10 -10 -10 -8 -7 ------- Run | Yrd Mat Min Sub Mat Fac Maximum Alert Level 1 | . . . . 1 . Low Security (%) 77 | 100 100 100 . 48 100 Level 1 22 | . . . . 51 . Level 2 . | . . . . . . Level 3 . | . . . . . . Level 4 . | . . . . . . Level 5 . | . . . . . . High Security . | . . . . . . Max Security . | . . . . . . Peak Influence 321 | . . . . 321 115 Initial 115 | . . . . . 115 Average 86 | . . . . 156 43 Influence Increases 1015 | . . . 20 712 283 Destroy 0b10 Robot/C 600 | . . . 20 400 180 Destroy 0b10 Robot/NC 35 | . . . . 30 5 Destroy Leader 142 | . . . . 102 40 Disable Machine 75 | . . . . 45 30 Destroy Structure 133 | . . . . 105 28 Lose Combat Pursuer 30 | . . . . 30 . Influence Decreases 971 | . . . 20 457 494 Entered New Map 140 | . . . . . 140 Time Decay 611 | . . . 20 287 304 Lost Part 220 | . . . . 170 50 Squads Dispatched 4 | . . . . 2 2 Investigation . | . . . . . . Extermination 1 | . . . . . 1 Reinforcement 3 | . . . . 2 1 Assault . | . . . . . . Garrison . | . . . . . . Intercept . | . . . . . . Searches Triggered . | . . . . . . Construction Impeded 1 | . . . . 1 . Haulers Reinforced . | . . . . . . Active Scanning Responses . | . . . . . . Cargo Convoy Interrupts . | . . . . . . Stealth | -11 -10 -10 -10 -8 -7 --------- Run | Yrd Mat Min Sub Mat Fac Distress Signals 6 | . 2 . . 2 2 Communications Jammed . | . . . . . . Distress Signals . | . . . . . . Times Spotted 61 | . 2 . 13 31 15 Peak Tracking Total 6 | . 1 . 4 6 6 Tactical Retreats 3 | . 2 . . 1 . Traps | -11 -10 -10 -10 -8 -7 ------- Run | Yrd Mat Min Sub Mat Fac Traps Triggered 1 | . . . . . 1 Indirectly . | . . . . . . Trap Hack Attempts . | . . . . . . Triggered . | . . . . . . Disarmed . | . . . . . . Reprogrammed . | . . . . . . Reused . | . . . . . . Traps Extracted . | . . . . . . Installed . | . . . . . . Triggered . | . . . . . . Machines | -11 -10 -10 -10 -8 -7 ---------- Run | Yrd Mat Min Sub Mat Fac Machines Disabled 5 | . . . . 3 2 Max in Single Turn 1 | . . . . 1 1 Machines Repaired . | . . . . . . Machines Dismantled . | . . . . . . Machines Sabotaged . | . . . . . . Overloaded Fab Kills . | . . . . . . Hacking | -11 -10 -10 -10 -8 -7 --------- Run | Yrd Mat Min Sub Mat Fac Machines Accessed 2 | . . . . 1 1 Terminals 1 | . . . . . 1 Fabricators . | . . . . . . Repair Stations 1 | . . . . 1 . Recycling Units . | . . . . . . Scanalyzers . | . . . . . . Garrison Access . | . . . . . . Total Hacks 3 | . . . . 2 1 Successful 2 | . . . . 1 1 Failed 1 | . . . . 1 . Catastrophic . | . . . . . . Database Lockouts . | . . . . . . Manual . | . . . . . . Terminals 1 | . . . . . 1 Fabricators . | . . . . . . Repair Stations 2 | . . . . 2 . Recycling Units . | . . . . . . Scanalyzers . | . . . . . . Garrison Access . | . . . . . . Terminal Hacks 1 | . . . . . 1 Record 1 | . . . . . 1 Fabricator Hacks . | . . . . . . Repair Station Hacks 1 | . . . . 1 . Scan Component 1 | . . . . 1 . Recycling Unit Hacks . | . . . . . . Scanalyzer . | . . . . . . Garrison Access Hacks . | . . . . . . Unauthorized Hacks . | . . . . . . Terminals . | . . . . . . Fabricators . | . . . . . . Repair Stations . | . . . . . . Recycling Units . | . . . . . . Scanalyzers . | . . . . . . Garrison Access . | . . . . . . Data Cores Recovered . | . . . . . . Used . | . . . . . . Hacking Detections 1 | . . . . 1 . Full Trace Events . | . . . . . . Feedback Events . | . . . . . . Feedback Blocked . | . . . . . . Robot Schematics Acquired . | . . . . . . Robots Built . | . . . . . . Authchips . | . . . . . . Time . | . . . . . . Total Robot Build Rating . | . . . . . . Part Schematics Acquired . | . . . . . . Parts Built . | . . . . . . Authchips . | . . . . . . Time . | . . . . . . Total Part Build Rating . | . . . . . . Parts Repaired . | . . . . . . Time . | . . . . . . Parts Recycled . | . . . . . . Recycled Matter . | . . . . . . Retrieved Matter . | . . . . . . Retrieved Components . | . . . . . . Parts Scanalyzed . | . . . . . . Part Schematics Acquired . | . . . . . . Parts Damaged . | . . . . . . Bothacking | -11 -10 -10 -10 -8 -7 ------------ Run | Yrd Mat Min Sub Mat Fac Used RIF Installer . | . . . . . . Robots Hacked . | . . . . . . Non-combat . | . . . . . . Combat . | . . . . . . Robot Hacks Applied . | . . . . . . Relay Couplers Released . | . . . . . . Fabnet Peak Effective % . | . . . . . . Robots Rewired . | . . . . . . Allies Hacked . | . . . . . . Hacks Repelled . | . . . . . . Allies | -11 -10 -10 -10 -8 -7 -------- Run | Yrd Mat Min Sub Mat Fac Total Allies . | . . . . . . Largest Group . | . . . . . . Highest-Rated Group . | . . . . . . Highest-Rated Ally . | . . . . . . Total Orders . | . . . . . . Ally Attacks . | . . . . . . Total Damage . | . . . . . . Kills . | . . . . . . Allies Corrupted . | . . . . . . Allies Melted . | . . . . . . Intel | -11 -10 -10 -10 -8 -7 ------- Run | Yrd Mat Min Sub Mat Fac Active Infowar (turns) 405 | . 159 62 . 184 . Terrain 184 | . . . . 184 . ECM 221 | . 159 62 . . . Robot Analysis Total . | . . . . . . Derelict Logs Recovered 1 | . . 1 . . . Drone Launches . | . . . . . . Drone Recoveries . | . . . . . . Exploration | -11 -10 -10 -10 -8 -7 ------------- Run | Yrd Mat Min Sub Mat Fac Turns Passed 2912 | 71 190 101 528 1049 973 Spaces Moved 1853 | 53 146 80 293 540 741 Core 18 | 10 . . 3 5 . Treads 228 | . . . 119 109 . Legs 719 | 33 146 80 170 290 . Wheels 888 | 10 . . 1 136 741 Hover . | . . . . . . Flight . | . . . . . . Fastest Speed 50 | 50 120 120 110 85 86 Average Speed 124 | 102 120 120 147 141 105 Slowest Speed 350 | 120 120 120 250 350 135 Overloaded Moves . | . . . . . . Propulsion Burnouts . | . . . . . . Robots Hopped . | . . . . . . Potential Cave-ins . | . . . . . . Cave-ins Triggered 1 | . . . . 1 . Exploration Rate (%) 19 | 4 24 17 19 36 17 Regions Visited 5 Branch Regions 2 Pre-discovered Areas . | . . . . . . Known Exits Taken . | . . . . . . Unknown Exits Taken 5 | 1 1 1 1 1 . Scrap Searched . | . . . . . . Spaces Dug . | . . . . . . Terrain Destroyed 157 | . . . . 135 22 Melee . | . . . . . . Projectile 1 | . . . . 1 . AOE 156 | . . . . 134 22 Terrain Rammed . | . . . . . . Walls Destroyed . | . . . . . . Machines Disabled . | . . . . . . Actions | -11 -10 -10 -10 -8 -7 --------- Run | Yrd Mat Min Sub Mat Fac Total 2285 | 69 163 87 338 729 899 Wait 134 | . . . 12 7 115 Move 1848 | 52 145 79 292 539 741 Hop . | . . . . . . Pick Up 73 | 7 11 1 . 40 14 Fast Attach 6 | 3 . 1 2 . . Attach 52 | 4 3 . 3 37 5 Detach 3 | . . . . 2 1 Swap 2 | 1 . . . . 1 Drop 27 | 2 4 6 . 11 4 Fire 115 | . . . 29 68 18 Melee . | . . . . . . Ram 17 | . . . . 17 . Kick 7 | . . . . 7 . Crush 1 | . . . . 1 . Escape Stasis . | . . . . . . Rewire . | . . . . . . Trap . | . . . . . . Miscellaneous . | . . . . . . Route ------- -11/Scrapyard -10/Materials -10/Mines (discovered 2 exits: Exi / [*Sub]) -10/Subcaves -8/Materials -7/Factory (discovered 1 exit: [*Low]) History --------- Turn | Location | Event 23 | -11/Scrapyard | Discovered new exit (range 15) 72 | -11/Scrapyard | Entered Materials 221 | -10/Materials | Discovered new exit (range 12) 262 | -10/Materials | Entered Mines 267 | -10/Mines | Identified exit to Exiles 300 | -10/Mines | A weapon hastily lodged in a ceiling crevice suddenly fell to the ground 305 | -10/Mines | Met a Derelict bent on vengeance 320 | -10/Mines | Found a Scrap Suit stashed away for nefarious purposes 322 | -10/Mines | Build established: Mutant 325 | -10/Mines | Found Scrap Suit 342 | -10/Mines | Discovered new exit (range 9) 363 | -10/Mines | Entered Subcaves 468 | -10/Subcaves | Ambushed by swarm of Subdwellers 490 | -10/Subcaves | Ambushed by angry Subdweller bent on revenge 505 | -10/Subcaves | Lost 3 allies 646 | -10/Subcaves | Build established: Scrapper 712 | -10/Subcaves | Lost 3 parts (2n1w) 747 | -10/Subcaves | Core integrity fell below 50% 808 | -10/Subcaves | Discovered new exit (range 10) 891 | -10/Subcaves | Entered Materials 891 | -8/Materials | Evolved 4 slots: Power x1, Utility x2, Weapon x1 1376 | -8/Materials | Crushed by falling debris 1407 | -8/Materials | Lost 3 parts (2p1w) 1532 | -8/Materials | Core integrity fell below 50% 1554 | -8/Materials | Lost 6 parts (1n3u2w) 1729 | -8/Materials | Lost 6 parts (2p1n1u2w) 1937 | -8/Materials | Discovered new exit (range 3) 1940 | -8/Materials | Entered Factory 1940 | -7/Factory | Evolved 2 slots: Power x1, Propulsion x1 1956 | -7/Factory | Discovered new exit (range 6) 2118 | -7/Factory | Build established: Scavenger-Tank 2913 | -7/Factory | Self-destructed Last Messages --------------- U-05 Engineer lays Concrete. U-05 Engineer builds a Wall. U-05 Engineer lays Concrete. R-06 Scavenger collects Lgt. Ion Engine. U-05 Engineer lays Concrete. U-05 Engineer builds a Door. Triggered Blade Trap. Massive razor-sharp blades shoot up from within the floor. Missile Launcher severed. U-05 Engineer lays Concrete. R-06 Scavenger collects Missile Launcher. System corrupted: Matter fused (-9). O-24 Administrator: "IFF HANDSHAKE FAILED. SECURING TERMINAL." ALERT: Hostiles spotted, dispatching reinforcements to Terminal F006. Acquired Recalibrator. W-25 Informer sends out distress signal. K-01 Serf cleans the Terminal. Map ----- +----------------------------------------------------+ | ?????????????????????????????????????????????????? | | ?????????????????????????????????????????????????? | | ?????????????????????????????????????????????????? | | ?????????????????????????????????????????????????? | | ?????????????????????????????????????????????????? | | ?????????????????????????????????????????????????? | | ?????????????????????#???????????????????????????? | | ?????????????????????# ??????????????????????????? | | ?????????????????????# ??????????????????????????? | | ?????????????????????# ?????#???????????????????? | | ?????????????????????# ???? #?? ????????????????? | | ?????????????????????# """" +? #????????????? | | ?????????????????????# """" #? #????????????? | | ?????????????????????# """" #? #????????????? | | ?????????????????????# """" ## #????????????? | | ?????????????????????# ## #"" ?????????? | | ?????????????????????# ## #""??????????? | | ?????????????????????#! ## k ???????????? | | ?????????????????????# ## #????????????? | | ??????????????????????? ??# #????????????? | | ??????????##+############+##### #????????????? | | ????????? #????????????? | | ????????? #????????????? | | ????????? ############## | | ????????? # # | | ????????? @ # # | | ??????????############## # """" """" # | | ???????????????????????# # """" """" # | | ???????????????????????# # """" """" # | | ???????????????????????#u # """" """" # | | ???????????????????????# + """" """" # | | ???????????????????????# # """" """" # | | ???????????????????????# # # | | ???????????????????????# # # | | ???????????????????????# # # | | ?????????????????????? # # | | ????????????????????? Y #########+#### | | ???????????????????? #??? | | ????????????????????? ######### #??? | | ????????????????????? #???????# #??? | | ??????????????????????###########+########??# #??? | | ??????????????????????????# #??# #??? | | ??????????????????????????# """ """ ##?# #??? | | ??????????????????????????# """ """ !! ??# #??? | | ??????????????????????????? """ """ !!????# #??? | | ????????????????????????????? ?? #??# #??? | | ??????????????????????????????? ???? ???# #??? | | ????????????????????????????????#+#???#+#???# #### | | ????????????????????????????????# ##### ##### | | ??????????????????????????????### ] | +----------------------------------------------------+ Best States ------------- Heat Dissipation 53 Energy Generation 23 Energy Capacity 290 Matter Stores 300 Matter Capacity 300 Sight Range 16 Terrain Scan Range 16 Terrain Scan Density 85 ECM Strength 1 Armor Coverage 600 Evasion (%) 55 Melee Accuracy 5 Recoil Reduction 2 Item Schematics ----------------- None Robot Schematics ------------------ None Fabricated ------------ Nothing Repaired ---------- Nothing Alien Tech Used ----------------- None Achievements -------------- Fist Fight Let's See Who's Tougher Made in Tau Ceti IV Unlikely Earthworm Challenges ------------ None Game ------ Seed ScrapLongswordGreatsword Manual? 0 Play Time 00:58:51 Cumulative 2.2 hours Start 2025.08.12 @ 20:53:58 End 2025.08.12 @ 21:54:06 Sessions 1 Manual Loads 0 Difficulty Rogue Special Mode None Game No. 5 Rogue 5 Adventurer 0 Explorer 0 Win Type - Total 0 Types 0/0/0/0/0/0/0/0/0/0 Lore% 0 Gallery% 5 Achievement% 3 Wizard Run 0 Options --------- Layout 1 ASCII 0 Keyboard 0 Movement Mouse Keybinds 0 Fullscreen 1 Font 24/Smallcaps Map View 50x35 Zoom Use 0% Tactical HUD 0 Map Filters NONE Filters NONE Steam 1 RUN: 91455ad6-d814-4b8b-854e-19de05262a87